fUSD/lending_fUSD_20251109
["ID","MTS","AMOUNT","RATE_DAILY","PERIOD"]
[393431524,1762652533353,151.0,0.00016537,2]
[393431525,1762652533968,151.0,0.00016537,2]
[393431526,1762652534726,151.0,0.00016537,2]
[393431527,1762652535345,151.0,0.00016537,2]
[393431528,1762652535936,151.0,0.00016537,2]
[393431529,1762652536571,151.0,0.00016537,2]
[393431530,1762652537184,276.41061742,0.00016537,2]
[393431531,1762652548738,500.0,0.00016546,2]
[393431532,1762652581202,300.0,0.00016546,2]
[393431534,1762652600763,179.7,0.00013295,2]
[393431535,1762652617796,500.0,0.00016546,2]
[393431536,1762652641574,300.0,0.00016546,2]
[393431537,1762652643824,429.65337045,0.00016546,2]
[393431538,1762652643848,70.34662955,0.00016546,2]
[393431539,1762652644229,2004.86,0.00016438,2]
[393431540,1762652675822,500.0,0.00016546,2]
[393431541,1762652701187,300.0,0.00016546,2]
[393431542,1762652701217,300.0,0.00016546,2]
[393431543,1762652701280,1200.0,0.00016546,2]
[393431544,1762652701913,550.0,0.00016546,2]
[393431545,1762652833404,151.0,0.00016537,2]
[393431546,1762652834102,151.0,0.00016537,2]
[393431547,1762652881687,300.0,0.00016546,2]
[393431548,1762652919664,1068480.0,0.00039119,90]
[393431549,1762652995339,1576.94,0.00016198,2]
[393431551,1762653001338,300.0,0.00016546,2]
[393431552,1762653001580,1200.0,0.00016546,2]
[393431556,1762653031410,-15458.98498969,0.00016547,2]
[393431559,1762653031464,-488.41,0.00016547,2]
[393431560,1762653031475,-3209.65001136,0.00016547,2]
[393431561,1762653031519,-4766.54990409,0.00016547,2]
[393431562,1762653031530,-2000.0,0.00016547,2]
[393431563,1762653031574,-806.96000115,0.00016547,2]
[393431564,1762653031586,-1617.34995375,0.00016547,2]
[393431565,1762653031687,-4572.64135469,0.00016547,2]
[393431566,1762653031698,-2499.88011157,0.00016547,2]
[393431574,1762653037436,-1105.15061631,0.00016547,2]
[393431665,1762653039477,-1226.06387895,0.00016547,2]
[393431667,1762653039638,-2961.84843128,0.00016547,2]
[393431668,1762653039652,-511.5480668,0.00016547,2]
[393431669,1762653039848,-2932.34298008,0.00016547,2]
[393431679,1762653042856,-1135.183548,0.00016547,2]
[393431682,1762653045612,-500.0,0.00016547,2]
[393431722,1762653054556,-1395.86337045,0.00016547,2]
[393431723,1762653054570,-10000.01,0.00016547,2]
[393431724,1762653054595,-10000.01,0.00016547,2]
[393431725,1762653054661,-10000.01,0.00016547,2]
[393431726,1762653054785,-10000.01,0.00016547,2]
[393431727,1762653054887,-10000.01,0.00016547,2]
[393431728,1762653055013,-10000.01,0.00016547,2]
[393431729,1762653055138,-10000.01,0.00016547,2]
[393431730,1762653055283,-10000.01,0.00016547,2]
[393431731,1762653060194,-10000.01,0.00016547,2]
[393431732,1762653060315,-4302.07707159,0.00016547,2]
[393431733,1762653060345,-319.12717472,0.00016548,2]
[393431734,1762653060375,-195.0,0.0001655,2]
[393431735,1762653060405,-172.60150738,0.00016552,2]
[393431736,1762653060473,-22.39849262,0.00016552,2]
[393431737,1762653063208,-300.0,0.00016546,2]
[393431738,1762653063238,-302.60685627,0.00016557,2]
[393431739,1762653063268,-311.02929392,0.00016557,2]
[393431740,1762653063299,-179.7,0.00016618,2]
[393431741,1762653063331,-698.07,0.00016646,2]
[393431742,1762653063359,-2906.56769962,0.000167,2]
[393431743,1762653063648,-604.06230038,0.000167,2]
[393431744,1762653107520,406.7772,0.00016447,2]
[393431745,1762653111983,-537.33597674,0.00016546,2]
[393431746,1762653112014,-165.86383643,0.00016546,2]
[393431747,1762653112043,-231.10836625,0.00016546,2]
[393431748,1762653112078,-500.0,0.00016546,2]
[393431749,1762653112187,-6724.61644116,0.00016549,2]
[393431750,1762653112228,-10000.01,0.00016549,2]
[393431751,1762653112364,-10000.01,0.00016549,2]
[393431752,1762653112497,-10000.01,0.00016549,2]
[393431753,1762653112620,-10000.01,0.00016549,2]
[393431754,1762653112756,-10000.01,0.00016549,2]
[393431755,1762653112886,-10000.01,0.00016549,2]
[393431756,1762653113016,-10000.01,0.00016549,2]
[393431757,1762653113121,-10000.01,0.00016549,2]
[393431758,1762653113236,-10000.01,0.00016549,2]
[393431759,1762653117755,-10000.01,0.00016549,2]
[393431760,1762653117864,-10000.01,0.00016549,2]
[393431761,1762653117999,-10000.01,0.00016549,2]
[393431762,1762653118180,-10000.01,0.00016549,2]
[393431763,1762653118650,-10000.01,0.00016549,2]
[393431764,1762653118774,-10000.01,0.00016549,2]
[393431765,1762653119314,-10000.01,0.00016549,2]
[393431766,1762653119411,-10000.01,0.00016549,2]
[393431767,1762653119520,-10000.01,0.00016549,2]
[393431768,1762653119645,-10000.01,0.00016549,2]
[393431769,1762653128420,29832.007443,7.945e-05,2]
[393431770,1762653129841,-10000.01,0.00016549,2]
[393431771,1762653130020,-10000.01,0.00016549,2]
[393431772,1762653130136,-10000.01,0.00016549,2]
[393431773,1762653130263,-10000.01,0.00016549,2]
[393431774,1762653130382,-10000.01,0.00016549,2]
[393431775,1762653130519,-10000.01,0.00016549,2]
[393431776,1762653130678,-10000.01,0.00016549,2]
[393431777,1762653130790,-10000.01,0.00016549,2]
[393431778,1762653130903,-10000.01,0.00016549,2]
[393431779,1762653131178,-10000.01,0.00016549,2]
[393431780,1762653135907,-10000.01,0.00016549,2]
[393431781,1762653136031,-10000.01,0.00016549,2]
[393431782,1762653136145,-10000.01,0.00016549,2]
[393431783,1762653136248,-10000.01,0.00016549,2]
[393431784,1762653136372,-10000.01,0.00016549,2]
[393431785,1762653136498,-10000.01,0.00016549,2]
[393431786,1762653136614,-10000.01,0.00016549,2]
[393431787,1762653136731,-10000.01,0.00016549,2]
[393431788,1762653136825,-10000.01,0.00016549,2]
[393431789,1762653136965,-10000.01,0.00016549,2]
[393431790,1762653151123,-10000.01,0.00016549,2]
[393431791,1762653160366,151.0,0.00015863,2]
[393431792,1762653176736,151.0,0.00015864,2]
[393431793,1762653193855,151.0,0.0001586,2]
[393431794,1762653210231,151.0,0.00015856,2]
[393431795,1762653251509,500.0,0.00039119,120]
[393431796,1762653251746,500.0,0.00039119,120]
[393431797,1762653251986,500.0,0.00039119,120]
[393431798,1762653252235,500.0,0.00039119,120]
[393431799,1762653252483,500.0,0.00039119,120]
[393431800,1762653252760,500.0,0.00039119,120]
[393431801,1762653252996,254.76416005,0.00039119,120]
[393431803,1762653266655,4100.72,8.247e-05,2]
[393431804,1762653267053,4100.72,8.664e-05,2]
[393431805,1762653267097,4100.72,9.081e-05,2]
[393431806,1762653267268,4100.72,9.498e-05,2]
[393431807,1762653267508,4100.72,9.915e-05,2]
[393431808,1762653267714,4100.72,0.00010332,2]
[393431809,1762653267925,4100.72,0.00010749,2]
[393431810,1762653268122,4100.72,0.00011166,2]
[393431811,1762653268351,4100.72,0.00011583,2]
[393431812,1762653268525,4100.72,0.00012,2]
[393431813,1762653268724,4100.72,0.00012418,2]
[393431814,1762653268937,4100.72,0.00012835,2]
[393431815,1762653269138,4100.72,0.00013252,2]
[393431816,1762653269546,4100.72,0.00013669,2]
[393431817,1762653269613,4100.72,0.00014086,2]
[393431818,1762653269790,4100.72,0.00014503,2]
[393431819,1762653269998,4100.72,0.0001492,2]
[393431820,1762653270199,4100.72,0.00015337,2]
[393431821,1762653270423,4100.72,0.00015754,2]
[393431823,1762653407199,150.0,0.00015907,2]
[393431824,1762653480956,9577.478785,0.00016009,2]
[393431825,1762653595671,210.78,0.00015666,2]
[393431826,1762653659858,234.4919929,0.00016009,2]
[393431828,1762653826413,172.27705366,0.000159,2]
[393431829,1762653857691,207.504522,0.00016,2]
[393431830,1762653880963,166.66,0.00014827,2]
[393431831,1762653881155,166.66,0.0001514,2]
[393431832,1762653881461,166.66,0.00015452,2]
[393431833,1762653881672,166.66,0.00015764,2]
[393431834,1762653892833,3366.69056193,0.00039124,60]
[393431835,1762653893381,259.00421723,0.00016009,2]
[393431836,1762653909832,250.0,0.00015563,2]
[393431840,1762654022619,520.10326571,0.00039124,60]
[393431841,1762654157879,201.072416,0.00016,2]
[393431845,1762654231596,-166.66,0.00016076,2]
[393431846,1762654231606,-195.0,0.00016077,2]
[393431847,1762654231617,-300.0,0.00016077,2]
[393431848,1762654231627,-195.0,0.00016078,2]
[393431849,1762654231636,-105.38275691,0.0001608,2]
[393431850,1762654231648,-69.65208876,0.0001608,2]
[393431851,1762654231658,-160.0,0.0001608,2]
[393431852,1762654231668,-472.26989949,0.00016097,2]
[393431853,1762654231679,-473.62483174,0.00016171,2]
[393431854,1762654231691,-3627.09516826,0.00016171,2]
[393431855,1762654231702,-166.67,0.00016197,2]
[393431856,1762654231713,-1200.0,0.00016206,2]
[393431857,1762654231723,-1726.84557519,0.00016207,2]
[393431858,1762654231732,-300.0,0.00016272,2]
[393431859,1762654231742,-300.0,0.00016272,2]
[393431860,1762654231751,-472.26989947,0.00016273,2]
[393431861,1762654231760,-217.27929419,0.00016338,2]
[393431862,1762654231770,-300.0,0.00016385,2]
[393431863,1762654231779,-1200.0,0.00016386,2]
[393431864,1762654231790,-166.66,0.00016388,2]
[393431865,1762654231799,-501.31792514,0.00016438,2]
[393431866,1762654231809,-472.26989947,0.00016449,2]
[393431867,1762654231818,-151.0,0.00016539,2]
[393431868,1762654231827,-151.0,0.00016539,2]
[393431869,1762654231836,-151.0,0.00016539,2]
[393431870,1762654231846,-151.0,0.00016539,2]
[393431871,1762654231855,-154.54768555,0.00016539,2]
[393431872,1762654231865,-151.0,0.00016539,2]
[393431874,1762654231874,-151.0,0.00016539,2]
[393431876,1762654231884,-151.0,0.00016539,2]
[393431878,1762654231893,-151.0,0.00016539,2]
[393431880,1762654231902,-151.0,0.00016539,2]
[393431882,1762654231912,-151.0,0.00016539,2]
[393431884,1762654231921,-151.0,0.00016539,2]
[393431886,1762654231930,-151.0,0.00016539,2]
[393431888,1762654231940,-151.0,0.00016539,2]
[393431890,1762654231956,-798.69627,0.0001654,2]
[393431892,1762654231966,-798.69628,0.0001654,2]
[393431894,1762654231975,-798.69627,0.0001654,2]
[393431897,1762654231984,-798.69627,0.0001654,2]
[393431900,1762654231993,-124.47209924,0.0001654,2]
[393431903,1762654232005,-674.22417076,0.0001654,2]
[393431905,1762654232014,-798.69627,0.0001654,2]
[393431907,1762654232023,-500.0,0.00016548,2]
[393431910,1762654232032,-459.89011839,0.00016548,2]
[393431913,1762654232042,-500.0,0.00016548,2]
[393431916,1762654232051,-375.40939563,0.00016548,2]
[393431919,1762654232063,-79539.64378794,0.00016549,2]
[393431922,1762654232072,-181.0600684,0.00016549,2]
[393431925,1762654232082,-22884.6676614,0.0001655,2]
[393431928,1762654232091,-1087.859,0.00016552,2]
[393431930,1762654232101,-182.64543414,0.00016552,2]
[393431932,1762654232111,-293.7411251,0.00016555,2]
[393431934,1762654232122,-506.02,0.00016555,2]
[393431937,1762654232138,-200.2388749,0.00016555,2]
[393431939,1762654232149,-594.0153,0.00016555,2]
[393431941,1762654232158,-227.8266,0.00016555,2]
[393431943,1762654232167,-502.94749061,0.00016573,2]
[393431944,1762654232177,-169.06048213,0.00016573,2]
[393431947,1762654232191,-500.0,0.00016573,2]
[393431948,1762654232201,-501.63441399,0.00016573,2]
[393431950,1762654232210,-500.0,0.00016573,2]
[393431952,1762654232220,-835.46362889,0.00016573,2]
[393431953,1762654232236,-793.30310123,0.00016573,2]
[393431954,1762654232248,-2404.41273411,0.00016573,2]
[393431955,1762654232260,-949.15632863,0.00016573,2]
[393431956,1762654232271,-373.2980954,0.00016573,2]
[393431957,1762654232283,-411.61874155,0.00016573,2]
[393431958,1762654232294,-571.40658039,0.00016573,2]
[393431959,1762654232305,-1452.62439007,0.00016573,2]
[393431960,1762654232316,-784.09876397,0.00016573,2]
[393431961,1762654232326,-368.69348996,0.00016573,2]
[393431962,1762654232335,-1962.56153907,0.00016573,2]
[393431963,1762654232347,-504.05734124,0.00016573,2]
[393431964,1762654232357,-418.35796124,0.00016651,2]
[393431965,1762654232378,-792.64203876,0.00016651,2]
[393431966,1762654232387,-151.0,0.00016652,2]
[393431967,1762654232396,-151.0,0.00016652,2]
[393431968,1762654232406,-500.0,0.00016654,2]
[393431969,1762654232415,-500.0,0.00016654,2]
[393431970,1762654232424,-7.80659834,0.00016654,2]
[393431972,1762654237566,-492.19340166,0.00016654,2]
[393431973,1762654237576,-500.0,0.00016654,2]
[393431974,1762654237585,-500.0,0.00016654,2]
[393431975,1762654237595,-500.0,0.00016654,2]
[393431976,1762654237604,-500.0,0.00016654,2]
[393431977,1762654237613,-500.0,0.00016654,2]
[393431978,1762654237622,-192.20781026,0.00016654,2]
[393431979,1762654237631,-500.0,0.00016654,2]
[393431980,1762654237641,-500.0,0.00016654,2]
[393431981,1762654237650,-500.0,0.00016654,2]
[393431982,1762654237659,-500.0,0.00016654,2]
[393431983,1762654237668,-500.0,0.00016654,2]
[393431984,1762654237677,-500.0,0.00016654,2]
[393431985,1762654237686,-500.0,0.00016654,2]
[393431986,1762654237696,-500.0,0.00016654,2]
[393431987,1762654237705,-500.0,0.00016654,2]
[393431988,1762654237715,-500.0,0.00016654,2]
[393431989,1762654237724,-602.20054976,0.00016654,2]
[393431990,1762654237732,-500.0,0.00016654,2]
[393431991,1762654237741,-500.0,0.00016654,2]
[393431992,1762654237751,-603.17250647,0.00016654,2]
[393431993,1762654237760,-500.0,0.00016654,2]
[393431994,1762654237769,-500.0,0.00016654,2]
[393431995,1762654237779,-502.3574418,0.00016654,2]
[393431996,1762654237788,-500.0,0.00016654,2]
[393431997,1762654237797,-500.0,0.00016654,2]
[393431998,1762654237806,-623.6224502,0.00016654,2]
[393431999,1762654237815,-500.0,0.00016654,2]
[393432000,1762654237824,-500.0,0.00016654,2]
[393432001,1762654237833,-500.0,0.00016654,2]
[393432003,1762654237842,-582.022205,0.00016654,2]
[393432005,1762654237851,-508.58843732,0.00016654,2]
[393432007,1762654237860,-500.0,0.00016654,2]
[393432009,1762654237869,-500.0,0.00016654,2]
[393432011,1762654237878,-500.0,0.00016654,2]
[393432013,1762654237888,-500.0,0.00016654,2]
[393432015,1762654237897,-155.42490175,0.00016654,2]
[393432017,1762654237906,-447.70754223,0.00016654,2]
[393432019,1762654237916,-628.12133022,0.00016654,2]
[393432022,1762654237925,-500.0,0.00016654,2]
[393432023,1762654237934,-500.0,0.00016654,2]
[393432025,1762654237943,-646.3502333,0.00016654,2]
[393432027,1762654237953,-500.0,0.00016654,2]
[393432030,1762654237962,-500.0,0.00016654,2]
[393432032,1762654237972,-91873.60412303,0.00016655,2]
[393432035,1762654237994,-1148.14462424,0.00016655,2]
[393432038,1762654238010,-287.33,0.00016655,2]
[393432098,1762654240102,-5736.73580013,0.00016655,2]
[393432099,1762654240113,-11738.95,0.00016655,2]
[393432100,1762654240155,-54120.01020811,0.00016655,2]
[393432102,1762654242809,-461.412428,0.00016655,2]
[393432103,1762654242822,-1130.40073013,0.00016655,2]
[393432106,1762654243408,-576.13387975,0.00016655,2]
[393432108,1762654243419,-1012.85979988,0.00016655,2]
[393432109,1762654243430,-1338.89025357,0.00016655,2]
[393432110,1762654243445,-2618.99287756,0.00016655,2]
[393432113,1762654245916,-411.24207859,0.00016655,2]
[393432114,1762654245927,-318.3903788,0.00016655,2]
[393432115,1762654245970,-337.31294928,0.00016655,2]
[393432116,1762654245982,-1071.549,0.00016655,2]
[393432117,1762654246234,-993.0,0.00016655,2]
[393432118,1762654246289,-1591.49311888,0.00016655,2]
[393432119,1762654246300,-21107.67817216,0.00016655,2]
[393432123,1762654278331,-300.0,0.00016383,2]
[393432124,1762654278359,-195.0,0.00016387,2]
[393432125,1762654278386,-300.0,0.0001639,2]
[393432126,1762654278414,-300.0,0.00016404,2]
[393432127,1762654278442,-300.0,0.00016405,2]
[393432128,1762654278470,-300.0,0.00016413,2]
[393432129,1762654278499,-300.0,0.00016427,2]
[393432130,1762654278526,-300.0,0.00016447,2]
[393432131,1762654278555,-300.0,0.0001645,2]
[393432132,1762654278583,-300.0,0.00016491,2]
[393432133,1762654278611,-315.62982396,0.00016531,2]
[393432134,1762654278639,-300.0,0.00016535,2]
[393432135,1762654278670,-500.0,0.00016548,2]
[393432136,1762654278699,-300.0,0.0001655,2]
[393432137,1762654278730,-300.0,0.00016594,2]
[393432138,1762654278759,-300.0,0.000166,2]
[393432139,1762654279001,-178.75035208,0.00016623,2]
[393432140,1762654284306,-121.24964792,0.00016623,2]
[393432141,1762654284343,-300.0,0.00016631,2]
[393432142,1762654284373,-300.0,0.00016636,2]
[393432143,1762654284402,-300.0,0.00016646,2]
[393432144,1762654284432,-300.0,0.00016648,2]
[393432145,1762654284467,-500.0,0.00016654,2]
[393432146,1762654284497,-500.0,0.00016654,2]
[393432147,1762654284526,-500.0,0.00016654,2]
[393432148,1762654284554,-500.0,0.00016654,2]
[393432149,1762654284717,-3357.51070416,0.00016655,2]
[393432150,1762654288662,244.63,0.00015946,2]
[393432151,1762654290309,-500.0,0.00016548,2]
[393432152,1762654290337,-731.15985954,0.00016655,2]
[393432153,1762654292470,870.287,0.00016654,2]
[393432154,1762654301143,500.0,0.00039125,120]
[393432155,1762654301468,500.0,0.00039125,120]
[393432156,1762654302046,547.64280895,0.00039125,120]
[393432157,1762654470790,220.33,0.0001579,2]
[393432160,1762654520338,337.44862087,0.00039125,60]
[393432162,1762654642147,989.94,0.00015766,2]
[393432163,1762654657017,-224.44,0.00016438,2]
[393432164,1762654657046,-250.0,0.00016461,2]
[393432165,1762654657075,-300.0,0.00016482,2]
[393432166,1762654657104,-195.0,0.00016503,2]
[393432167,1762654657132,-1879.94353,0.0001651,2]
[393432168,1762654657160,-167.1132101,0.00016544,2]
[393432169,1762654657304,-1415.653128,0.00016356,2]
[393432170,1762654657314,-1681.0763918,0.0001655,2]
[393432171,1762654662938,-1200.0,0.00016549,2]
[393432172,1762654663166,-7600.01,0.0001655,2]
[393432173,1762654785916,1000.0,0.0001574,2]
[393432175,1762654826327,938.74,0.00013699,2]
[393432176,1762654846302,4693.65,0.00015769,2]
[393432177,1762654850695,2848.26,0.00015769,2]
[393432178,1762654903830,200.0,0.00015742,2]
[393432179,1762654909482,-1726.84557519,0.00016351,2]
[393432180,1762654909513,-257.79739421,0.00016384,2]
[393432181,1762654909541,-221.92525619,0.00016418,2]
[393432182,1762654909571,-509.3844798,0.00016455,2]
[393432183,1762654909600,-162.13690115,0.00016455,2]
[393432184,1762654909628,-714.7043042,0.0001649,2]
[393432185,1762654909657,-151.0,0.00016547,2]
[393432186,1762654909691,-300.0,0.00016548,2]
[393432187,1762654909724,-712.42217852,0.00016548,2]
[393432188,1762654909873,-487.57782148,0.00016548,2]
[393432189,1762654909904,-300.0,0.00016548,2]
[393432190,1762654909934,-550.0,0.00016548,2]
[393432191,1762654909961,-500.0,0.00016549,2]
[393432192,1762654909988,-500.0,0.00016549,2]
[393432193,1762654910017,-313.39527956,0.00016549,2]
[393432194,1762654910223,-439.68493115,0.00016549,2]
[393432195,1762654910259,-500.0,0.00016549,2]
[393432196,1762654910290,-500.0,0.00016549,2]
[393432197,1762654910323,-500.0,0.00016549,2]
[393432198,1762654910352,-407.00566494,0.00016549,2]
[393432199,1762654910421,-500.0,0.00016549,2]
[393432200,1762654910452,-500.0,0.00016549,2]
[393432201,1762654910489,-500.0,0.00016549,2]
[393432202,1762654910520,-500.0,0.00016549,2]
[393432203,1762654910549,-500.0,0.00016549,2]
[393432204,1762654910580,-473.45252689,0.00016549,2]
[393432205,1762654910618,-500.0,0.00016549,2]
[393432206,1762654910648,-500.0,0.00016549,2]
[393432207,1762654910680,-404.61846549,0.00016549,2]
[393432208,1762654911178,-100.06414025,0.0001655,2]
[393432209,1762654911202,-404.61846549,0.0001655,2]
[393432210,1762654911215,-1243.86801524,0.0001655,2]
[393432211,1762654911228,-10000.01,0.0001655,2]
[393432212,1762654911250,-10000.01,0.0001655,2]
[393432213,1762654911267,-10000.01,0.0001655,2]
[393432214,1762654911279,-10000.01,0.0001655,2]
[393432215,1762654911292,-10000.01,0.0001655,2]
[393432216,1762654911306,-10000.01,0.0001655,2]
[393432217,1762654911324,-10000.01,0.0001655,2]
[393432218,1762654912563,-10000.01,0.0001655,2]
[393432219,1762654915429,-10000.01,0.0001655,2]
[393432220,1762654915561,-10000.01,0.0001655,2]
[393432221,1762654915689,-10000.01,0.0001655,2]
[393432222,1762654915803,-10000.01,0.0001655,2]
[393432223,1762654915907,-10000.01,0.0001655,2]
[393432224,1762654916010,-10000.01,0.0001655,2]
[393432225,1762654916121,-10000.01,0.0001655,2]
[393432226,1762654916228,-10000.01,0.0001655,2]
[393432227,1762654916348,-10000.01,0.0001655,2]
[393432228,1762654930596,-300.0,0.00016549,2]
[393432229,1762654930629,-195.0,0.0001655,2]
[393432230,1762654930677,-9010.01,0.0001655,2]
[393432231,1762654930707,-10000.01,0.0001655,2]
[393432232,1762654930820,-10000.01,0.0001655,2]
[393432233,1762654930922,-10000.01,0.0001655,2]
[393432234,1762654931032,-10000.01,0.0001655,2]
[393432235,1762654939002,151.0,0.00015857,2]
[393432236,1762654939051,151.0,0.00015857,2]
[393432237,1762654955426,151.0,0.00015897,2]
[393432238,1762654964056,-500.0,0.0001639,2]
[393432239,1762654964083,-169.01244557,0.00016454,2]
[393432240,1762654964121,-8661.98510886,0.00016454,2]
[393432241,1762654964242,-343.0,0.00016549,2]
[393432242,1762654964277,-9314.01,0.0001655,2]
[393432243,1762654964382,-10000.01,0.0001655,2]
[393432244,1762654964516,-10000.01,0.0001655,2]
[393432245,1762654964656,-10000.01,0.0001655,2]
[393432246,1762654964768,-10000.01,0.0001655,2]
[393432247,1762654964869,-10000.01,0.0001655,2]
[393432248,1762654964984,-10000.01,0.0001655,2]
[393432249,1762654965111,-10000.01,0.0001655,2]
[393432250,1762654965241,-10000.01,0.0001655,2]
[393432251,1762654969961,-10000.01,0.0001655,2]
[393432252,1762654970076,-10000.01,0.0001655,2]
[393432253,1762654970183,-10000.01,0.0001655,2]
[393432254,1762654970290,-10000.01,0.0001655,2]
[393432255,1762654970392,-10000.01,0.0001655,2]
[393432256,1762654970533,-10000.01,0.0001655,2]
[393432257,1762654970642,-10000.01,0.0001655,2]
[393432258,1762654970758,-10000.01,0.0001655,2]
[393432259,1762654970883,-10000.01,0.0001655,2]
[393432260,1762654970993,-10000.01,0.0001655,2]
[393432261,1762654972444,151.0,0.0001589,2]
[393432262,1762654975111,1852.42,0.00015833,2]
[393432263,1762654979063,-645.95298722,0.0001655,2]
[393432264,1762654979092,-2624.13225959,0.00016554,2]
[393432265,1762654979120,-1000.0,0.00016555,2]
[393432266,1762654979177,-1459.83950638,0.00016555,2]
[393432267,1762654985056,-4167.808135,0.00016467,2]
[393432268,1762654985085,-624.23323638,0.00016555,2]
[393432269,1762654985126,-415.92725724,0.00016555,2]
[393432270,1762654988833,151.0,0.00015887,2]
[393432271,1762655046554,286.29,0.00015827,2]
[393432272,1762655062196,1915.19620541,0.00015887,2]
[393432273,1762655079128,-1566.61961,0.0001649,2]
[393432274,1762655079157,-218.0,0.00016549,2]
[393432275,1762655079325,-500.0,0.00016549,2]
[393432276,1762655079416,-5430.77078,0.0001655,2]
[393432277,1762655079433,-10000.01,0.0001655,2]
[393432278,1762655079458,-10000.01,0.0001655,2]
[393432279,1762655079545,-10000.01,0.0001655,2]
[393432280,1762655080295,-10000.01,0.0001655,2]
[393432281,1762655080413,-10000.01,0.0001655,2]
[393432282,1762655080546,-10000.01,0.0001655,2]
[393432283,1762655080735,-10000.01,0.0001655,2]
[393432284,1762655080837,-10000.01,0.0001655,2]
[393432285,1762655082011,-10000.01,0.0001655,2]
[393432286,1762655085098,-10000.01,0.0001655,2]
[393432287,1762655085262,-4507.9157195,0.0001655,2]
[393432288,1762655085286,-984.178561,0.0001655,2]
[393432289,1762655091141,-696.229,0.00016557,2]
[393432290,1762655091172,-250.0,0.00016565,2]
[393432291,1762655091202,-503.93536918,0.00016573,2]
[393432292,1762655091232,-500.0,0.00016573,2]
[393432293,1762655091260,-502.0082202,0.00016573,2]
[393432294,1762655091288,-500.0,0.00016573,2]
[393432295,1762655091319,-500.0,0.00016573,2]
[393432296,1762655091432,-3095.66482124,0.00016615,2]
[393432297,1762655094139,-4264.67726684,0.00016615,2]
[393432298,1762655094164,-1470.65546632,0.00016615,2]
[393432299,1762655101382,-300.0,0.00016644,2]
[393432300,1762655101428,-151.0,0.00016645,2]
[393432301,1762655101471,-151.0,0.00016645,2]
[393432302,1762655101513,-151.0,0.00016645,2]
[393432303,1762655101555,-151.0,0.00016645,2]
[393432304,1762655101596,-151.0,0.00016647,2]
[393432305,1762655101640,-300.0,0.00016648,2]
[393432306,1762655101685,-300.0,0.00016648,2]
[393432307,1762655101739,-1200.0,0.00016648,2]
[393432308,1762655101879,-500.0,0.00016649,2]
[393432309,1762655101950,-500.0,0.00016649,2]
[393432310,1762655101982,-500.0,0.00016649,2]
[393432311,1762655102013,-500.0,0.00016649,2]
[393432312,1762655102043,-70.6333043,0.00016649,2]
[393432313,1762655103611,-148.7433914,0.00016649,2]
[393432314,1762655110383,15488.04636349,0.000154,2]
[393432315,1762655116471,155.26134529,0.00039122,120]
[393432316,1762655120002,6155.32511462,9e-05,2]
[393432317,1762655131593,166.39521399,0.0002,120]
[393432318,1762655145317,150.28031351,0.00039122,120]
[393432319,1762655160530,299.74734296,8e-05,2]
[393432320,1762655164495,9347.51615445,0.00011,2]
[393432321,1762655164983,-10000.01,0.000165,2]
[393432322,1762655166143,4737.51,0.00015904,2]
[393432323,1762655170917,-4761.95356833,0.000165,2]
[393432324,1762655170940,-476.10286334,0.000165,2]
[393432325,1762655184085,999.0,0.00015905,3]